Workbook

Sheet Immunizzazione classica
B2: Costruzione di un Portafoglio Immunizzato
B5: tasso mkt | C5: =EXP(0.1)-1 -> 0.1052
C7: attività finanziarie
B9: epoche | C9: 0 | D9: 1 | E9: 2 | F9: 3 | G9: 4 | H9: 5 | I9: 6 | J9: 7 | K9: 8
B10: titolo 1 | C10: =NPV($C$5,D10:K10) -> 90.5 | D10: 100
B11: titolo 2 | C11: =NPV($C$5,D11:K11) -> 99.1 | D11: 10 | E11: 110
B12: titolo 3 | C12: 246.4 | D12: 100 | E12: 100 | F12: 100
B13: titolo 4 | C13: 45.0 | D13: 20 | E13: 0 | F13: 20 | G13: 0 | H13: 20
B14: titolo 5 | C14: 128.2 | D14: 15 | E14: 15 | F14: 15 | G14: 50 | H14: 50 | I14: 50
B15: titolo 6 | C15: 97.5 | D15: 10 | E15: 10 | F15: 10 | G15: 10 | H15: 10 | I15: 10 | J15: 110
B16: titolo 7 | C16: 97.3 | D16: 10 | E16: 10 | F16: 10 | G16: 10 | H16: 10 | I16: 10 | J16: 10 | K16: 110
C18: passività finanziarie
B20: epoche | C20: 0 | D20: 1 | E20: 2 | F20: 3 | G20: 4 | H20: 5 | I20: 6 | J20: 7 | K20: 8
C21: =NPV($C$5,D21:K21) -> 514.7 | D21: 0 | E21: 200 | F21: 0 | G21: 200 | H21: 0 | I21: 350 | J21: 50 | K21: 0
C23: quote di composizione
C25: titolo 1 | D25: 0.7095
C26: titolo 2 | D26: 0.7396
C27: titolo 3 | D27: -0.3605
C28: titolo 4 | D28: 1.9249
C29: titolo 5 | D29: 1.0227
C30: titolo 6 | D30: 1.2585
C31: titolo 7 | D31: 1.2897
C33: flussi del portafoglio di attività
B35: epoche | C35: 0 | D35: 1 | E35: 2 | F35: 3 | G35: 4 | H35: 5 | I35: 6 | J35: 7 | K35: 8
C36: =NPV($C$5,D36:K36) -> 514.7 | D36: =+$D$25*D10+$D$26*D11+$D$27*D12+$D$28*D13+$D$29*D14+$D$30*D15+$D$31*D16 -> 121.6 | E36: 86.1 | F36: 43.3 | G36: 76.6 | H36: 115.1 | I36: 76.6 | J36: 151.3 | K36: 141.9
C38: flussi del portafoglio complessivo
B40: epoche | C40: 0 | D40: 1 | E40: 2 | F40: 3 | G40: 4 | H40: 5 | I40: 6 | J40: 7 | K40: 8
C41: =NPV($C$5,D41:K41) -> -0.0 | D41: =+D36-D21 -> 121.6 | E41: -113.9 | F41: 43.3 | G41: -123.4 | H41: 115.1 | I41: -273.4 | J41: 101.3 | K41: 141.9
C44: Calcolo delle Duration
C45: attività
C46: =NPV($C$5,D46:K46) -> 2,190.1 | D46: =+D36*D35 -> 121.6 | E46: =+E36*E35 -> 172.2 | F46: 129.8 | G46: 306.5 | H46: 575.6 | I46: 459.7 | J46: 1,059.3 | K46: 1,135.0
C48: Duration Attività | E48: =+C46/C36 -> 4.255
C50: passività
C51: =NPV($C$5,D51:K51) -> 2,190.1 | D51: =+D21*D20 -> 0 | E51: =+E21*E20 -> 400.0 | F51: 0 | G51: 800.0 | H51: 0 | I51: 2,100.0 | J51: 350.0 | K51: 0
C53: Duration Passività | E53: =+C51/C21 -> 4.255
C56: Calcolo delle Dispersioni
C57: attività
C58: =NPV($C$5,D58:K58) -> 12,523.7 | D58: =+D35^2*D36 -> 121.6 | E58: =+E35^2*E36 -> 344.5 | F58: 389.4 | G58: 1,225.8 | H58: 2,877.8 | I58: 2,758.2 | J58: 7,415.4 | K58: 9,079.8
C60: Dispersione Attività | E60: =+C58/C36 -> 24.331
C62: passività
C63: =NPV($C$5,D63:K63) -> 10,931.7 | D63: =+D20^2*D21 -> 0 | E63: =+E20^2*E21 -> 800.0 | F63: 0 | G63: 3,200.0 | H63: 0 | I63: 12,600.0 | J63: 2,450.0 | K63: 0
C65: Dispersione Passività | E65: =+C63/C21 -> 21.238
C68: Zona Risolutore
C70: F.O.
C71: Min costo | D71: =MMULT(TRANSPOSE(D25:D31),C10:C16) -> 514.7
C73: Vincoli
C74: Bilancio | D74: =+C41 -> -0.0
C75: Duration | D75: =+E48 -> 4.255 | E75: =E53 -> 4.255
C76: Dispersione | D76: =+E60 -> 24.331 | E76: =E65 -> 21.238
B78: Tassi | C78: Valore Att.
C79: Portafoglio
B80: 0.00% | C80: =NPV(B80,$D$41:$K$41) -> 12.550
B81: =+B80+0.01 -> 1.00% | C81: =NPV(B81,$D$41:$K$41) -> 9.715
B82: =+B81+0.01 -> 2.00% | C82: 7.362
B83: 3.00% | C83: 5.429
B84: 4.00% | C84: 3.867
B85: 5.00% | C85: 2.628
B86: 6.00% | C86: 1.671
B87: 7.00% | C87: 0.962
B88: 8.00% | C88: 0.468
B89: 9.00% | C89: 0.162
B90: 10.00% | C90: 0.018
B91: 11.00% | C91: 0.015
B92: 12.00% | C92: 0.133
B93: 13.00% | C93: 0.356
B94: 14.00% | C94: 0.669
B95: =+B94+0.01 -> 15.00% | C95: 1.057
B96: 16.00% | C96: 1.510
B97: 17.00% | C97: 2.017
B98: 18.00% | C98: 2.570
B99: 19.00% | C99: 3.159
B100: 20.00% | C100: 3.778
B101: 21.00% | C101: 4.421
B102: 22.00% | C102: 5.082
B103: 23.00% | C103: 5.756
B104: 24.00% | C104: 6.440
B105: 25.00% | C105: 7.129
B106: 26.00% | C106: 7.821
B107: 27.00% | C107: 8.513
B108: 28.00% | C108: 9.201
B109: 29.00% | C109: 9.885
B110: 30.00% | C110: 10.563
B111: 31.00% | C111: 11.232
B112: 32.00% | C112: 11.892
B113: 33.00% | C113: 12.542
B114: 34.00% | C114: 13.180
B115: 35.00% | C115: 13.806
B116: 36.00% | C116: 14.419
B117: 37.00% | C117: 15.019
B118: 38.00% | C118: 15.605
B119: 39.00% | C119: 16.178

Sheet Regressione
A1: OUTPUT RIEPILOGO
A3: Statistica della regressione
A4: R multiplo | B4: 0.993929418
A5: R al quadrato | B5: 0.9878956879
A6: R al quadrato corretto | B6: 0.8071073238
A7: Errore standard | B7: 1.657053592
A8: Osservazioni | B8: 14
A10: ANALISI VARIANZA
B11: gdl | C11: SQ | D11: MQ | E11: F | F11: Significatività F
A12: Regressione | B12: 8 | C12: 1344.606904 | D12: 168.075863 | E12: 61.21138987 | F12: 0.0001450933641
A13: Residuo | B13: 6 | C13: 16.47495965 | D13: 2.745826608
A14: Totale | B14: 14 | C14: 1361.081864
B16: Coefficienti | C16: Errore standard | D16: Stat t | E16: Valore di significatività | F16: Inferiore 95% | G16: Superiore 95% | H16: Inferiore 95,0% | I16: Superiore 95,0%
A17: Intercetta | B17: 0
A18: Variabile X 1 | B18: 0.96106 | C18: 0.01653273925 | D18: 58.13056598 | E18: 1.74122143e-09 | F18: 0.9206033045 | G18: 1.001511675 | H18: 0.9206033045 | I18: 1.001511675
A19: Variabile X 2 | B19: 0.88797 | C19: 0.01082821943 | D19: 82.00561375 | E19: 2.214244538e-10 | F19: 0.8614790625 | G19: 0.9144704982 | H19: 0.8614790625 | I19: 0.9144704982
A20: Variabile X 3 | B20: 0.84369 | C20: 0.01099911533 | D20: 76.70529186 | E20: 3.305139792e-10 | F20: 0.8167764664 | G20: 0.8706042371 | H20: 0.8167764664 | I20: 0.8706042371
A21: Variabile X 4 | B21: 0.77652 | C21: 0.01108403284 | D21: 70.05737678 | E21: 5.690988553e-10 | F21: 0.7493965941 | G21: 0.8036399364 | H21: 0.7493965941 | I21: 0.8036399364
A22: Variabile X 5 | B22: 0.72167 | C22: 0.01527933017 | D22: 47.23178067 | E22: 6.037201917e-09 | F22: 0.6842827699 | G22: 0.7590571727 | H22: 0.6842827699 | I22: 0.7590571727
A23: Variabile X 6 | B23: 0.68148 | C23: 0.007279200641 | D23: 93.62015022 | E23: 1.000708561e-10 | F23: 0.6636682822 | G23: 0.6992914328 | H23: 0.6636682822 | I23: 0.6992914328
A24: Variabile X 7 | B24: 0.64353 | C24: 0.01095483455 | D24: 58.74361315 | E24: 1.635156546e-09 | F24: 0.6167210291 | G24: 0.6703320973 | H24: 0.6167210291 | I24: 0.6703320973
A25: Variabile X 8 | B25: 0.61207 | C25: 0.01124184948 | D25: 54.44539438 | E25: 2.577695742e-09 | F25: 0.5845590935 | G25: 0.6395747632 | H25: 0.5845590935 | I25: 0.6395747632
A29: OUTPUT RESIDUI
A31: Osservazione | B31: Y prevista | C31: Residui
A32: 1 | B32: 96.11 | C32: 0.1323462684
A33: 2 | B33: 107.29 | C33: 1.067994413
A34: 3 | B34: 103.59 | C34: -0.9356481447
A35: 4 | B35: 103.22 | C35: 0.5851409701
A36: 5 | B36: 101.37 | C36: -0.4166803088
A37: 6 | B37: 96.73 | C37: 2.091025602
A38: 7 | B38: 101.94 | C38: -1.910772694
A39: 8 | B39: 109.89 | C39: 0.161505227
A40: 9 | B40: 116.87 | C40: -1.606094561
A41: 10 | B41: 136.30 | C41: 0.8910676294
A42: 11 | B42: 108.48 | C42: -0.9966305638
A43: 12 | B43: 106.69 | C43: 0.9971052267
A44: 13 | B44: 97.97 | C44: 0.5049482856
A45: 14 | B45: 108.39 | C45: -0.5097573169

Sheet Misurazione struttura
B2: Misurazione della struttura a termine dei tassi
B3: la stima di un modello parametrico
A5: Scadenzario | B5: 0 | C5: 1 | D5: 2 | E5: 3 | F5: 4 | G5: 5 | H5: 6 | I5: 7 | J5: 8
A7: titolo 1 | B7: 96.24 | C7: 100 | D7: 0 | E7: 0 | F7: 0 | G7: 0 | H7: 0 | I7: 0 | J7: 0
A8: titolo 2 | B8: 108.36 | C8: 10 | D8: 110 | E8: 0 | F8: 0 | G8: 0 | H8: 0 | I8: 0 | J8: 0
A9: titolo 3 | B9: 102.65 | C9: 8 | D9: 108 | E9: 0 | F9: 0 | G9: 0 | H9: 0 | I9: 0 | J9: 0
A10: titolo 4 | B10: 103.80 | C10: 7 | D10: 7 | E10: 107 | F10: 0 | G10: 0 | H10: 0 | I10: 0 | J10: 0
A11: titolo 5 | B11: 100.95 | C11: 6 | D11: 6 | E11: 107 | F11: 0 | G11: 0 | H11: 0 | I11: 0 | J11: 0
A12: titolo 6 | B12: 98.82 | C12: 5.5 | D12: 5.5 | E12: 5.5 | F12: 105.5 | G12: 0 | H12: 0 | I12: 0 | J12: 0
A13: titolo 7 | B13: 100.03 | C13: 7 | D13: 7 | E13: 7 | F13: 107 | G13: 0 | H13: 0 | I13: 0 | J13: 0
A14: titolo 8 | B14: 110.05 | C14: 9 | D14: 9 | E14: 9 | F14: 9 | G14: 109 | H14: 0 | I14: 0 | J14: 0
A15: titolo 9 | B15: 115.27 | C15: 10 | D15: 10 | E15: 10 | F15: 10 | G15: 10 | H15: 110 | I15: 0 | J15: 0
A16: titolo 10 | B16: 137.19 | C16: 0 | D16: 0 | E16: 0 | F16: 0 | G16: 0 | H16: 200 | I16: 0 | J16: 0
A17: titolo 11 | B17: 107.48 | C17: 8 | D17: 8 | E17: 8 | F17: 8 | G17: 8 | H17: 8 | I17: 108 | J17: 0
A18: titolo 12 | B18: 107.68 | C18: 7.5 | D18: 7.5 | E18: 7.5 | F18: 7.5 | G18: 7.5 | H18: 7.5 | I18: 109 | J18: 0
A19: titolo 13 | B19: 98.48 | C19: 6 | D19: 6 | E19: 6 | F19: 6 | G19: 6 | H19: 6 | I19: 6 | J19: 106
A20: titolo 14 | B20: 107.88 | C20: 8 | D20: 8 | E20: 8 | F20: 8 | G20: 8 | H20: 8 | I20: 8 | J20: 105
A24: t | B24: v(0,t) | C24: i(0,t) | D24: i(0,t-1,t)
A25: 1 | B25: 0.96106 | C25: =+(1/B25)^(1/A25)-1 -> 0.041 | D25: =1/B25-1 -> 0.041
A26: =+A25+1 -> 2 | B26: 0.88797 | C26: =+(1/B26)^(1/A26)-1 -> 0.061 | D26: =+B25/B26-1 -> 0.082
A27: =+A26+1 -> 3 | B27: 0.84369 | C27: 0.058 | D27: =+B26/B27-1 -> 0.052
A28: 4 | B28: 0.77652 | C28: 0.065 | D28: 0.087
A29: 5 | B29: 0.72167 | C29: 0.067 | D29: 0.076
A30: 6 | B30: 0.68148 | C30: 0.066 | D30: 0.059
A31: 7 | B31: 0.64353 | C31: 0.065 | D31: 0.059
A32: 8 | B32: 0.61207 | C32: 0.063 | D32: 0.051

Sheet Arbitraggi
B2: Costruzione di un Arbitraggio
C4: matrice dei coefficienti | H4: termini noti
A6: titolo 1 | C6: 100 | D6: 0 | E6: 10 | F6: 0 | H6: 0
A7: titolo 2 | C7: 0 | D7: 100 | E7: 10 | F7: 0 | H7: 99.62
A8: titolo 3 | C8: 0 | D8: 0 | E8: 110 | F8: 10 | H8: -10
A9: titolo 4 | C9: 0 | D9: 0 | E9: 0 | F9: 110 | H9: -110
A11: Quota titolo 1 | C11: =MMULT(MINVERSE(C6:F9),H6:H9) -> -0
A12: Quota titolo 2 | C12: 0.9962
A13: Quota titolo 3 | C13: 0
A14: Quota titolo 4 | C14: -1

Sheet Pagina Iniziale
B3: Manuale di
B4: Matematica finanziaria
B7: Marco Micocci - Giovanni Masala
B9: Capitoli 5-6

Sheet Insensibilità
B3: Calcolo Valore Capitale di un Titolo e ruolo Duration
B9: Importi | D9: 30 | E9: 30 | F9: 30 | G9: 30 | H9: 30 | I9: 30 | J9: 30 | K9: 130
B10: tempi | C10: 0 | D10: 1 | E10: 2 | F10: 3 | G10: 4 | H10: 5 | I10: 6 | J10: 7 | K10: 8
B13: i(0;t) | D13: 0.1700 | E13: =+D13 -> 0.1700 | F13: =+E13 -> 0.1700 | G13: 0.1700 | H13: 0.1700 | I13: 0.1700 | J13: 0.1700 | K13: 0.1700
B14: i(0;t-1;t) | D14: =+D13 -> 0.1700 | E14: =+(1+E13)^E10/(1+D13)^D10-1 -> 0.1700 | F14: =+(1+F13)^F10/(1+E13)^E10-1 -> 0.1700 | G14: 0.1700 | H14: 0.1700 | I14: 0.1700 | J14: 0.1700 | K14: 0.1700
B16: v(0;t) | D16: =+(1+D13)^-D10 -> 0.8547 | E16: =+(1+E13)^-E10 -> 0.7305 | F16: 0.6244 | G16: 0.5337 | H16: 0.4561 | I16: 0.3898 | J16: 0.3332 | K16: 0.2848
B18: D(0;X) | D18: =SUMPRODUCT(D9:K9,D10:K10,D16:K16)/SUMPRODUCT(D9:K9,D16:K16) -> 4.4891
B20: VAN(t;X) | C20: =NPV($D$13,D9:$K$9) -> 154.69 | D20: =NPV($D$13,E9:$K$9) -> 150.99 | E20: =NPV($D$13,F9:$K$9) -> 146.66 | F20: =NPV($D$13,G9:$K$9) -> 141.59 | G20: =NPV($D$13,H9:$K$9) -> 135.66 | H20: =NPV($D$13,I9:$K$9) -> 128.72 | I20: =NPV($D$13,J9:$K$9) -> 120.61 | J20: =NPV($D$13,K9:$K$9) -> 111.11 | K20: 0
B21: ACC(t;X) | C21: =NPV($D$13,$C$9:C9)*(1+$D$13)^C10 -> 0 | D21: =NPV($D$13,$C$9:D9)*(1+$D$13)^D10 -> 30.00 | E21: =NPV($D$13,$C$9:E9)*(1+$D$13)^E10 -> 65.10 | F21: =NPV($D$13,$C$9:F9)*(1+$D$13)^F10 -> 106.17 | G21: =NPV($D$13,$C$9:G9)*(1+$D$13)^G10 -> 154.22 | H21: =NPV($D$13,$C$9:H9)*(1+$D$13)^H10 -> 210.43 | I21: =NPV($D$13,$C$9:I9)*(1+$D$13)^I10 -> 276.21 | J21: =NPV($D$13,$C$9:J9)*(1+$D$13)^J10 -> 353.16 | K21: =NPV($D$13,$C$9:K9)*(1+$D$13)^K10 -> 543.20
B23: W(t;X) | C23: =+C20+C21 -> 154.69 | D23: =+D20+D21 -> 180.99 | E23: 211.76 | F23: 247.76 | G23: 289.88 | H23: 339.16 | I23: 396.81 | J23: 464.27 | K23: 543.20
C25: 0 | D25: 1 | E25: 2 | F25: 3 | G25: 4 | H25: 5 | I25: 6 | J25: 7 | K25: 8
B26: 0.05 | C26: 261.58 | D26: 274.66 | E26: 288.39 | F26: 302.81 | G26: 317.95 | H26: 333.85 | I26: 350.54 | J26: 368.07 | K26: 386.47
B27: =+B26+0.01 -> 0.06 | C27: 249.04 | D27: 263.98 | E27: 279.82 | F27: 296.60 | G27: 314.40 | H27: 333.27 | I27: 353.26 | J27: 374.46 | K27: 396.92
B28: =+B27+0.01 -> 0.07 | C28: 237.34 | D28: 253.95 | E28: 271.73 | F28: 290.75 | G28: 311.10 | H28: 332.88 | I28: 356.18 | J28: 381.12 | K28: 407.79
B29: 0.08 | C29: 226.43 | D29: 244.54 | E29: 264.10 | F29: 285.23 | G29: 308.05 | H29: 332.69 | I29: 359.31 | J29: 388.05 | K29: 419.10
B30: 0.09 | C30: 216.23 | D30: 235.69 | E30: 256.90 | F30: 280.03 | G30: 305.23 | H30: 332.70 | I30: 362.64 | J30: 395.28 | K30: 430.85
B31: 0.10 | C31: 206.70 | D31: 227.37 | E31: 250.11 | F31: 275.12 | G31: 302.63 | H31: 332.89 | I31: 366.18 | J31: 402.80 | K31: 443.08
B32: 0.11 | C32: 197.78 | D32: 219.53 | E32: 243.68 | F32: 270.49 | G32: 300.24 | H32: 333.26 | I32: 369.92 | J32: 410.62 | K32: 455.78
B33: 0.12 | C33: 189.42 | D33: 212.15 | E33: 237.61 | F33: 266.12 | G33: 298.05 | H33: 333.82 | I33: 373.88 | J33: 418.74 | K33: 468.99
B34: 0.13 | C34: 181.58 | D34: 205.18 | E34: 231.86 | F34: 262.00 | G34: 296.06 | H34: 334.55 | I34: 378.04 | J34: 427.18 | K34: 482.72
B35: 0.14 | C35: 174.22 | D35: 198.61 | E35: 226.42 | F35: 258.12 | G35: 294.25 | H35: 335.45 | I35: 382.41 | J35: 435.95 | K35: 496.98
B36: 0.15 | C36: 167.31 | D36: 192.41 | E36: 221.27 | F36: 254.46 | G36: 292.63 | H36: 336.52 | I36: 387.00 | J36: 445.05 | K36: 511.80
B37: 0.16 | C37: 160.81 | D37: 186.54 | E37: 216.39 | F37: 251.01 | G37: 291.17 | H37: 337.76 | I37: 391.80 | J37: 454.49 | K37: 527.20
B38: 0.17 | C38: 154.69 | D38: 180.99 | E38: 211.76 | F38: 247.76 | G38: 289.88 | H38: 339.16 | I38: 396.81 | J38: 464.27 | K38: 543.20
C61: 0 | D61: 1 | E61: 2 | F61: 3 | G61: 4 | H61: 5 | I61: 6 | J61: 7 | K61: 8
B62: 0.05 | C62: 154.69 | D62: 274.66 | E62: 288.39 | F62: 302.81 | G62: 317.95 | H62: 333.85 | I62: 350.54 | J62: 368.07 | K62: 386.47
B63: =+B62+0.01 -> 0.06 | C63: 154.69 | D63: 263.98 | E63: 279.82 | F63: 296.60 | G63: 314.40 | H63: 333.27 | I63: 353.26 | J63: 374.46 | K63: 396.92
B64: =+B63+0.01 -> 0.07 | C64: 154.69 | D64: 253.95 | E64: 271.73 | F64: 290.75 | G64: 311.10 | H64: 332.88 | I64: 356.18 | J64: 381.12 | K64: 407.79
B65: 0.08 | C65: 154.69 | D65: 244.54 | E65: 264.10 | F65: 285.23 | G65: 308.05 | H65: 332.69 | I65: 359.31 | J65: 388.05 | K65: 419.10
B66: 0.09 | C66: 154.69 | D66: 235.69 | E66: 256.90 | F66: 280.03 | G66: 305.23 | H66: 332.70 | I66: 362.64 | J66: 395.28 | K66: 430.85
B67: 0.10 | C67: 154.69 | D67: 227.37 | E67: 250.11 | F67: 275.12 | G67: 302.63 | H67: 332.89 | I67: 366.18 | J67: 402.80 | K67: 443.08
B68: 0.11 | C68: 154.69 | D68: 219.53 | E68: 243.68 | F68: 270.49 | G68: 300.24 | H68: 333.26 | I68: 369.92 | J68: 410.62 | K68: 455.78
B69: 0.12 | C69: 154.69 | D69: 212.15 | E69: 237.61 | F69: 266.12 | G69: 298.05 | H69: 333.82 | I69: 373.88 | J69: 418.74 | K69: 468.99
B70: 0.13 | C70: 154.69 | D70: 205.18 | E70: 231.86 | F70: 262.00 | G70: 296.06 | H70: 334.55 | I70: 378.04 | J70: 427.18 | K70: 482.72
B71: 0.14 | C71: 154.69 | D71: 198.61 | E71: 226.42 | F71: 258.12 | G71: 294.25 | H71: 335.45 | I71: 382.41 | J71: 435.95 | K71: 496.98
B72: 0.15 | C72: 154.69 | D72: 192.41 | E72: 221.27 | F72: 254.46 | G72: 292.63 | H72: 336.52 | I72: 387.00 | J72: 445.05 | K72: 511.80
B73: 0.16 | C73: 154.69 | D73: 186.54 | E73: 216.39 | F73: 251.01 | G73: 291.17 | H73: 337.76 | I73: 391.80 | J73: 454.49 | K73: 527.20
B74: 0.17 | C74: 154.69 | D74: 180.99 | E74: 211.76 | F74: 247.76 | G74: 289.88 | H74: 339.16 | I74: 396.81 | J74: 464.27 | K74: 543.20
D78: 1 | E78: 2 | F78: 3 | G78: 4 | H78: 5 | I78: 6 | J78: 7 | K78: 8
C79: 0.05 | D79: =(D62/$C62)^(1/D$61)-1 -> 77.55% | E79: 36.54% | F79: 25.09% | G79: 19.74% | H79: 16.63% | I79: 14.61% | J79: 13.18% | K79: 12.13%
C80: =+C79+0.01 -> 0.06 | D80: 70.65% | E80: 34.49% | F80: 24.23% | G80: 19.40% | H80: 16.59% | I80: 14.75% | J80: 13.46% | K80: 12.50%
C81: =+C80+0.01 -> 0.07 | D81: 64.17% | E81: 32.54% | F81: 23.41% | G81: 19.09% | H81: 16.56% | I81: 14.91% | J81: 13.75% | K81: 12.88%
C82: 0.08 | D82: 58.08% | E82: 30.66% | F82: 22.62% | G82: 18.79% | H82: 16.55% | I82: 15.08% | J82: 14.04% | K82: 13.27%
C83: 0.09 | D83: 52.36% | E83: 28.87% | F83: 21.87% | G83: 18.52% | H83: 16.55% | I83: 15.26% | J83: 14.34% | K83: 13.66%
C84: 0.10 | D84: 46.98% | E84: 27.15% | F84: 21.16% | G84: 18.27% | H84: 16.56% | I84: 15.44% | J84: 14.65% | K84: 14.06%
C85: 0.11 | D85: 41.91% | E85: 25.51% | F85: 20.47% | G85: 18.03% | H85: 16.59% | I85: 15.64% | J85: 14.97% | K85: 14.46%
C86: 0.12 | D86: 37.14% | E86: 23.93% | F86: 19.82% | G86: 17.82% | H86: 16.63% | I86: 15.84% | J86: 15.29% | K86: 14.87%
C87: 0.13 | D87: 32.64% | E87: 22.43% | F87: 19.20% | G87: 17.62% | H87: 16.68% | I87: 16.06% | J87: 15.62% | K87: 15.29%
C88: 0.14 | D88: 28.39% | E88: 20.98% | F88: 18.61% | G88: 17.44% | H88: 16.74% | I88: 16.28% | J88: 15.95% | K88: 15.71%
C89: =+C88+0.01 -> 0.15 | D89: 24.38% | E89: 19.60% | F89: 18.05% | G89: 17.28% | H89: 16.82% | I89: 16.51% | J89: 16.30% | K89: 16.13%
C90: =+C89+0.01 -> 0.16 | D90: =(D73/$C73)^(1/D$61)-1 -> 20.59% | E90: 18.27% | F90: 17.51% | G90: 17.13% | H90: 16.90% | I90: 16.75% | J90: 16.64% | K90: 16.56%
C91: =+C90+0.01 -> 0.17 | D91: =(D74/$C74)^(1/D$61)-1 -> 17.00% | E91: 17.00% | F91: 17.00% | G91: 17.00% | H91: 17.00% | I91: 17.00% | J91: 17.00% | K91: 17.00%

Sheet Calcolo duration
B9: Importi | D9: 30 | E9: 30 | F9: 30 | G9: 30 | H9: 30 | I9: 30 | J9: 30 | K9: 130 | L9: 0 | M9: 0
B10: tempi | C10: 0 | D10: 1 | E10: 2 | F10: 3 | G10: 4 | H10: 5 | I10: 6 | J10: 7 | K10: 8 | L10: 9 | M10: 10
B12: i(0;t)=0,06-0,01*t/4
B13: i(0;t) | D13: =0.06-0.01*D10/4 -> 0.0575 | E13: 0.0550 | F13: 0.0525 | G13: 0.0500 | H13: 0.0475 | I13: 0.0450 | J13: 0.0425 | K13: 0.0400 | L13: 0.0375 | M13: 0.0350
B14: i(0;t-1;t) | D14: =+D13 -> 0.0575 | E14: =+(1+E13)^E10/(1+D13)^D10-1 -> 0.0525 | F14: 0.0475 | G14: 0.0425 | H14: 0.0376 | I14: 0.0326 | J14: 0.0276 | K14: 0.0227 | L14: 0.0177 | M14: 0.0128
B16: v(0;t) | D16: =+(1+D13)^-D10 -> 0.9456 | E16: =+(1+E13)^-E10 -> 0.8985 | F16: 0.8577 | G16: 0.8227 | H16: 0.7929 | I16: 0.7679 | J16: 0.7473 | K16: 0.7307
B18: D(0;X) | D18: =SUMPRODUCT(D9:K9,D10:K10,D16:K16)/SUMPRODUCT(D9:K9,D16:K16) -> 5.3051

Sheet Duration
B2: Calcolo della Duration
B5: tempi t | C5: flussi Ft | D5: tassi i(0,t-1,t) | E5: v(0,t) | G5: V.A. Ft | H5: V.A. Ft * t
B7: 1 | C7: 20.50 | D7: 0.1000 | E7: =1/(1+D7) -> 0.9091 | G7: =+C7*E7 -> 18.64 | H7: =+G7*B7 -> 18.64
B8: 2.5 | C8: 30.00 | D8: 0.1250 | E8: =+E7/(1+D8) -> 0.8081 | G8: =+C8*E8 -> 24.24 | H8: =+G8*B8 -> 60.61
B9: 3 | C9: 37.10 | D9: 0.1133 | E9: =+E8/(1+D9) -> 0.7258 | G9: =+C9*E9 -> 26.93 | H9: =+G9*B9 -> 80.79
B10: 4.5 | C10: 50.00 | D10: 0.1100 | E10: =+E9/(1+D10) -> 0.6539 | G10: =+C10*E10 -> 32.70 | H10: =+G10*B10 -> 147.13
B11: 5 | C11: 45.20 | D11: 0.1050 | E11: =+E10/(1+D11) -> 0.5918 | G11: =+C11*E11 -> 26.75 | H11: =+G11*B11 -> 133.74
G13: =SUM(G7:G11) -> 129.25 | H13: =SUM(H7:H11) -> 440.90
B14: Duration | C14: =+H13/G13 -> 3.41
C18: Duration | D18: =SUMPRODUCT(B7:B11,C7:C11,E7:E11)/SUMPRODUCT(C7:C11,E7:E11) -> 3.41
